bitfinex/quotes_BTCUSD_20260311
["timestamp","ask_amount","ask_price","bid_price","bid_amount"]
[1773271984378,0.00022001,70327.0,70314.0,0.00436842]
[1773271985790,0.00022001,70327.0,70318.0,0.00436842]
[1773271985994,0.00022001,70327.0,70320.0,0.00436842]
[1773271986194,0.00022001,70335.0,70321.0,0.07110251]
[1773271986497,0.00022001,70335.0,70322.0,0.00436842]
[1773271987314,0.00022001,70335.0,70325.0,0.12739663]
[1773271987315,1e-08,70335.0,70325.0,0.12739663]
[1773271987516,0.00022001,70341.0,70326.0,0.00436842]
[1773271987716,0.00022001,70341.0,70328.0,0.00436842]
[1773271988640,0.00496562,70348.0,70330.0,0.00436842]
[1773271988641,0.00022001,70348.0,70330.0,0.00436842]
[1773271989223,5.501e-05,70343.0,70330.0,0.00436842]
[1773271989533,0.00022001,70348.0,70330.0,0.00436842]
[1773271990640,0.00022001,70348.0,70332.0,0.00436842]
[1773271990817,0.00022001,70348.0,70333.0,0.00144]
[1773271991019,0.00022001,70348.0,70333.0,0.00580842]
[1773271991216,0.00022001,70348.0,70333.0,0.00144]
[1773271991418,0.07129567,70348.0,70333.0,0.00144]
[1773271991632,0.00474561,70347.0,70333.0,0.00144]
[1773271992012,0.0048197,70347.0,70333.0,0.00144]
[1773271992454,0.0048197,70347.0,70334.0,0.00436842]
[1773271992455,7.409e-05,70347.0,70334.0,0.00436842]
[1773271992659,0.00022001,70350.0,70334.0,0.00436842]
[1773271992660,1e-08,70350.0,70336.0,0.00436842]
[1773271992817,1e-08,70350.0,70336.0,0.00444251]
[1773271993637,0.01108001,70358.0,70341.0,0.00436842]
[1773271993839,0.01108001,70358.0,70343.0,0.00436842]
[1773271994963,0.01108001,70358.0,70345.0,0.00436842]
[1773271995467,0.01098001,70358.0,70345.0,0.00436842]
[1773271995863,0.00022001,70355.0,70345.0,0.00436842]
[1773271997587,0.00022001,70355.0,70346.0,0.07107724]
[1773271997752,0.00022001,70355.0,70346.0,0.07544566]
[1773272001752,0.00022001,70355.0,70345.0,0.07107724]
[1773272002181,0.00022001,70355.0,70336.0,0.07116043]
[1773272002182,0.00468826,70354.0,70336.0,0.07116043]
[1773272002351,0.00468826,70354.0,70337.0,0.07252606]
[1773272003112,0.00468826,70354.0,70346.0,0.0002]
[1773272003933,0.00468826,70354.0,70347.0,0.07107623]
[1773272004113,0.07106925,70354.0,70347.0,0.07107623]
[1773272004332,0.00468826,70353.0,70347.0,0.07107623]
[1773272005959,0.00022001,70355.0,70347.0,0.07107623]
[1773272006920,0.07106232,70361.0,70347.0,0.07107623]
[1773272006921,0.00468826,70367.0,70348.0,0.00257124]
[1773272007304,0.000462,70363.0,70348.0,0.00257124]
[1773272008006,0.00468826,70367.0,70348.0,0.00257124]
[1773272008208,0.34092998,70396.0,70351.0,0.00257124]
[1773272008209,0.00490827,70373.0,70351.0,0.00257124]
[1773272008389,0.07595847,70373.0,70351.0,0.00257124]
[1773272008595,0.00468826,70372.0,70351.0,0.00257124]
[1773272009225,0.00468826,70372.0,70352.0,0.00144]
[1773272009398,0.00468826,70372.0,70353.0,0.00257124]
[1773272010126,0.00468826,70372.0,70354.0,0.07106916]
[1773272010127,0.00468826,70370.0,70354.0,0.07106916]
[1773272010296,0.00468826,70370.0,70352.0,0.07107039]
[1773272010497,0.00468826,70370.0,70354.0,0.00144]
[1773272010886,0.00144,70369.0,70354.0,0.00144]
[1773272011085,0.00612826,70369.0,70354.0,0.00144]
[1773272011303,0.00468826,70369.0,70354.0,0.00144]
[1773272012531,0.00468826,70367.0,70355.0,0.07106815]
[1773272012742,0.00468826,70367.0,70354.0,0.07106879]
[1773272013040,0.00468826,70367.0,70353.0,0.07106815]
[1773272013334,0.00468826,70367.0,70346.0,0.07127623]
[1773272013534,0.00468826,70367.0,70346.0,0.07271623]
[1773272013684,0.00468826,70367.0,70326.0,0.07109737]
[1773272013885,0.00468826,70367.0,70339.0,0.07108432]
[1773272014520,0.00468826,70365.0,70339.0,0.07108432]
[1773272016527,0.07105906,70364.0,70339.0,0.07108432]
[1773272016757,0.00468826,70362.0,70339.0,0.07108432]
[1773272016982,0.00468826,70362.0,70338.0,0.07272502]
[1773272019925,0.12739663,70360.0,70338.0,0.0002]
[1773272020128,0.00468826,70359.0,70333.0,0.07109038]
[1773272020488,0.00479988,70359.0,70333.0,0.07109038]
[1773272022362,0.07106512,70358.0,70333.0,0.07109038]
[1773272022565,0.00493586,70357.0,70334.0,0.00257124]
[1773272022774,0.00144,70356.0,70334.0,0.00257124]
[1773272023546,0.00493586,70355.0,70334.0,0.00257124]
[1773272023702,0.00493586,70355.0,70335.0,0.00144]
[1773272024446,0.00493586,70355.0,70335.0,0.00401124]
[1773272024657,0.07106916,70354.0,70336.0,0.07108735]
[1773272024849,0.00493586,70353.0,70336.0,0.07108735]
[1773272025614,0.00493586,70353.0,70337.0,0.00144]
[1773272026448,0.00493586,70353.0,70336.0,0.07108735]
[1773272026644,0.07107118,70352.0,70338.0,0.07108533]
[1773272026847,0.07107118,70352.0,70103.0,1.4094375]
[1773272026848,0.00493586,70351.0,70332.0,0.07109112]
[1773272027079,0.00493586,70351.0,70333.0,0.00144]
[1773272027223,0.00493586,70348.0,70332.0,0.07109139]
[1773272028338,0.00493586,70348.0,70331.0,0.0002]
[1773272028552,0.07107623,70347.0,70319.0,0.00077405]
[1773272028746,0.00493586,70346.0,70323.0,0.07130005]
[1773272028933,0.00493586,70346.0,70323.0,0.0002]
[1773272029127,0.00493586,70346.0,70323.0,0.07130021]
[1773272029755,0.00493586,70346.0,70323.0,0.0002]
[1773272029965,0.00493586,70346.0,70329.0,0.0002]
[1773272030352,0.00493586,70346.0,70323.0,0.07130015]
[1773272030604,0.21221244,70347.0,70322.0,0.0005003]
[1773272030605,0.07108533,70338.0,70322.0,0.0005003]
[1773272030808,0.00473176,70336.0,70322.0,0.0005003]
[1773272032678,0.00473176,70334.0,70322.0,0.0005003]
[1773272034825,0.00473176,70332.0,70322.0,0.0005003]
[1773272035040,0.00473176,70330.0,70322.0,0.0005003]
[1773272036819,0.00473176,70330.0,70314.0,0.0002]
[1773272036820,0.00473176,70328.0,70314.0,0.0002]
[1773272037019,0.00473176,70328.0,70314.0,0.07130926]
[1773272038235,0.00473176,70328.0,70314.0,0.0002]
[1773272038411,0.00473176,70328.0,70313.0,0.0002]
[1773272038611,0.00573176,70328.0,70307.0,0.0002]
[1773272038832,0.00473176,70326.0,70312.0,0.00031162]
[1773272039033,0.07109644,70327.0,70312.0,0.00031162]
[1773272039034,0.00473176,70324.0,70312.0,0.00031162]
[1773272039659,0.00473176,70324.0,70307.0,0.0002]
[1773272039871,0.00484329,70324.0,70307.0,0.0002]
[1773272040723,0.07110049,70323.0,70307.0,0.0002]
[1773272040956,0.00473176,70322.0,70307.0,0.0002]
[1773272041151,0.07110049,70326.0,70307.0,0.0002]
[1773272041152,0.00473176,70339.0,70309.0,0.00077405]
[1773272041353,0.00473176,70337.0,70310.0,0.00077405]
[1773272041956,0.00473176,70335.0,70310.0,0.00077405]
[1773272043091,0.00473176,70333.0,70312.0,0.00077405]
[1773272043867,0.07252937,70334.0,70299.0,0.0002]
[1773272043868,0.12736816,70322.0,70299.0,0.0002]
[1773272044071,0.12736816,70322.0,70290.0,0.00144]
[1773272044072,0.12736816,70311.0,70290.0,0.00144]
[1773272044385,0.12736816,70311.0,70280.0,0.00049]
[1773272044386,0.12736816,70311.0,70286.0,0.07113751]
[1773272044387,0.00499999,70309.0,70286.0,0.07113751]
[1773272044591,0.00499999,70309.0,70292.0,0.0002]
[1773272044941,0.00499999,70307.0,70292.0,0.0002]
[1773272045272,0.07111566,70309.0,70292.0,0.07133083]
[1773272045442,0.00499999,70308.0,70292.0,0.07154443]
[1773272046446,0.00499999,70308.0,70292.0,0.0004136]
[1773272046649,0.00499999,70308.0,70283.0,0.00144]
[1773272046855,0.00499999,70306.0,70284.0,0.00144]
[1773272047060,0.00499999,70306.0,70281.0,0.07114232]
[1773272047309,0.00499999,70306.0,70280.0,0.00049]
[1773272047688,0.07111667,70307.0,70273.0,0.0017853]
[1773272047689,0.00499999,70299.0,70273.0,0.0003453]
[1773272047857,0.00499999,70297.0,70273.0,0.07149621]
[1773272048869,0.00511152,70297.0,70273.0,0.07149621]
[1773272049278,0.0725678,70296.0,70273.0,0.07149621]
[1773272049483,0.0725678,70296.0,70274.0,0.00144]
[1773272049811,0.00499999,70295.0,70274.0,0.00144]
[1773272051302,0.00499999,70295.0,70275.0,0.07114905]
[1773272051303,0.07112982,70294.0,70275.0,0.07114905]
[1773272051494,0.07112982,70295.0,70275.0,0.07202155]
[1773272051683,0.00144,70293.0,70275.0,0.07202155]
[1773272051882,0.00011153,70297.0,70275.0,0.07202155]
[1773272052096,0.00499999,70305.0,70280.0,0.12736816]
[1773272052338,0.0725597,70304.0,70281.0,0.00144]
[1773272052556,0.07111935,70305.0,70281.0,0.00144]
[1773272052758,0.07111363,70310.0,70281.0,0.00144]
[1773272053310,0.07111363,70311.0,70290.0,0.12736816]
[1773272053311,0.07111336,70311.0,70290.0,0.12736816]
[1773272053517,0.00499999,70316.0,70292.0,0.07113184]
[1773272053716,0.00144,70314.0,70292.0,0.07113184]
[1773272053903,0.00144,70313.0,70292.0,0.07113184]
[1773272054132,0.00499999,70312.0,70292.0,0.07113184]
[1773272055528,0.07611261,70311.0,70292.0,0.07113184]
[1773272055722,0.00499999,70310.0,70292.0,0.07113184]
[1773272056042,0.00499999,70310.0,70291.0,0.07113184]
[1773272056247,0.00499999,70310.0,70289.0,0.07113488]
[1773272057650,0.07111465,70309.0,70289.0,0.07113488]
[1773272057878,0.00499999,70308.0,70289.0,0.07113488]
[1773272058815,0.00499999,70308.0,70288.0,0.0725749]
[1773272059119,0.00499999,70308.0,70291.0,0.0002]
[1773272059846,0.00499999,70306.0,70291.0,0.07133238]
[1773272060094,0.00499999,70306.0,70292.0,0.07113184]
[1773272060491,0.00499999,70304.0,70292.0,0.07113184]
[1773272061048,0.00499999,70304.0,70291.0,0.07133238]
[1773272064009,0.07112072,70303.0,70291.0,0.07133238]
[1773272065832,0.07612071,70304.0,70291.0,0.07133238]
[1773272066089,0.00022001,70310.0,70291.0,0.07133238]
[1773272066090,0.07133371,70310.0,70292.0,0.02346544]
[1773272066290,0.07132583,70318.0,70293.0,0.00144]
[1773272066481,0.07110656,70317.0,70293.0,0.00144]
[1773272066612,0.07254656,70317.0,70293.0,0.00144]
[1773272066811,0.00499999,70316.0,70293.0,0.00144]
[1773272067977,0.07254656,70317.0,70293.0,0.00144]
[1773272067978,0.07610857,70315.0,70293.0,0.07113083]
[1773272068165,0.07610857,70315.0,70294.0,0.00144]
[1773272068366,0.00499999,70314.0,70293.0,0.07113083]
[1773272068575,0.00499999,70314.0,70294.0,0.00144]
[1773272069098,0.00499999,70314.0,70291.0,0.0002]
[1773272069304,0.00499999,70314.0,70292.0,0.0002]
[1773272069827,0.00499999,70314.0,70291.0,0.0002]
[1773272070054,0.00499999,70312.0,70291.0,0.0002]
[1773272071228,0.00599999,70312.0,70291.0,0.0002]
[1773272071405,0.00499999,70310.0,70291.0,0.0002]
[1773272071728,0.00499999,70310.0,70284.0,0.0002]
[1773272071729,0.00499999,70309.0,70284.0,0.0002]
[1773272072286,0.00499999,70307.0,70284.0,0.0002]
[1773272073712,0.00499999,70307.0,70283.0,0.0002]
[1773272074323,0.00499999,70305.0,70283.0,0.0002]
[1773272074517,0.00499999,70303.0,70283.0,0.0002]
[1773272075748,0.00144,70302.0,70283.0,0.0002]
[1773272075921,0.00499999,70301.0,70283.0,0.0002]
[1773272076457,0.00499999,70299.0,70283.0,0.0002]
[1773272078760,0.00499999,70297.0,70283.0,0.0002]
[1773272079079,0.00499999,70297.0,70284.0,0.07113994]
[1773272079379,0.07112577,70301.0,70284.0,0.07113994]
[1773272079380,0.00144,70302.0,70285.0,0.00144]
[1773272080215,0.07634101,70303.0,70285.0,0.00144]
[1773272080216,0.00022001,70303.0,70285.0,0.00144]
[1773272080838,0.00022001,70303.0,70286.0,0.07113792]
[1773272082072,0.07111884,70305.0,70286.0,0.07113792]
[1773272082282,0.07255809,70306.0,70286.0,0.07113792]
[1773272082533,0.07111809,70306.0,70286.0,0.07113792]
[1773272082733,0.00499999,70303.0,70286.0,0.07113792]
[1773272082932,0.00499999,70303.0,70287.0,0.00144]
[1773272083778,0.00499999,70303.0,70287.0,0.00323719]
[1773272084684,0.07112577,70298.0,70277.0,0.07114603]
[1773272084889,0.00477238,70296.0,70277.0,0.07114603]
[1773272085829,0.00477238,70296.0,70280.0,0.07238812]
[1773272086657,0.00477238,70296.0,70280.0,0.00124462]
[1773272086824,0.00477238,70294.0,70280.0,0.07238857]
[1773272088541,0.07112881,70295.0,70280.0,0.07238857]
[1773272088730,0.07112881,70295.0,70280.0,0.00304181]
[1773272088926,0.00477238,70294.0,70281.0,0.07114298]
[1773272091296,0.07113083,70293.0,70281.0,0.07114298]
[1773272091475,0.07592383,70293.0,70281.0,0.07114298]
[1773272091997,0.07113083,70293.0,70281.0,0.07114298]
[1773272092237,0.004793,70292.0,70280.0,0.00144462]
[1773272092732,0.07113083,70293.0,70280.0,0.00144462]
[1773272092733,0.004793,70290.0,70280.0,0.00144462]
[1773272093115,0.004793,70290.0,70276.0,0.0002]
[1773272093318,0.004793,70288.0,70276.0,0.0002]
[1773272093901,0.004793,70288.0,70276.0,0.07134724]
[1773272094101,0.07113488,70289.0,70276.0,0.07134724]
[1773272094678,0.00144,70288.0,70276.0,0.07134724]
[1773272095113,0.00144,70287.0,70276.0,0.07134724]
[1773272095499,0.07592788,70289.0,70276.0,0.07134724]
[1773272095706,0.00144,70288.0,70276.0,0.07134724]
[1773272096109,0.00144,70287.0,70276.0,0.07134724]
[1773272096482,0.07113488,70289.0,70276.0,0.07134724]
[1773272096780,0.00658162,70288.0,70276.0,0.07134724]
[1773272096979,0.00514162,70288.0,70276.0,0.07134724]
[1773272097176,0.00144,70287.0,70276.0,0.07134724]
[1773272097616,0.07257691,70287.0,70276.0,0.07134724]
[1773272098023,0.07113691,70287.0,70276.0,0.07134724]
[1773272098350,0.00144,70287.0,70276.0,0.07134724]
[1773272098590,0.0711367,70288.0,70276.0,0.07134724]
[1773272098710,0.00144,70287.0,70276.0,0.07134724]
[1773272098907,0.07257045,70294.0,70276.0,0.07134724]
[1773272099150,0.07257045,70294.0,70276.0,0.07171936]
[1773272099655,0.00514162,70293.0,70276.0,0.07171936]
[1773272100244,0.00514162,70293.0,70277.0,0.00144]
[1773272100964,0.00514162,70293.0,70278.0,0.00144]
[1773272101865,0.07113184,70292.0,70276.0,0.07171936]
[1773272102029,0.00514162,70291.0,70278.0,0.00144]
[1773272104173,0.07113387,70290.0,70279.0,0.071145]
[1773272104327,0.00514162,70289.0,70279.0,0.071145]
[1773272105568,0.00514162,70289.0,70276.0,0.00057212]
[1773272105772,0.25509032,70286.0,70254.0,0.07116848]
[1773272106018,0.25509032,70286.0,70253.0,0.0002176]
[1773272106019,0.00514162,70270.0,70253.0,0.0002176]
[1773272106190,0.07115715,70267.0,70254.0,0.07117032]
[1773272106398,0.14143047,70279.0,70261.0,0.0002]
[1773272106578,0.00144,70280.0,70262.0,0.01778538]
[1773272108126,0.00144,70283.0,70262.0,0.01778538]
[1773272108609,0.07258102,70283.0,70263.0,0.0711612]
[1773272110214,0.07258102,70283.0,70263.0,0.0721612]
[1773272110499,0.07258102,70283.0,70263.0,0.0711612]
[1773272110697,0.00514162,70282.0,70263.0,0.0711612]
[1773272111051,0.00514162,70282.0,70263.0,0.0721612]
[1773272111946,0.00514162,70282.0,70264.0,0.00144]
[1773272112499,0.00514162,70282.0,70265.0,0.00144]
[1773272112745,0.00514162,70280.0,70264.0,0.00144]
[1773272113152,0.00514162,70280.0,70263.0,0.07116109]
[1773272113329,0.00514162,70280.0,70264.0,0.00144]
[1773272113531,0.00514162,70280.0,70263.0,0.07260075]
[1773272113754,0.00514162,70280.0,70265.0,0.0002]
[1773272114056,0.00514162,70280.0,70265.0,0.00186998]
[1773272114672,0.071145,70279.0,70266.0,0.07115817]
[1773272114897,0.00514162,70280.0,70266.0,0.07115817]
[1773272115035,0.07114391,70281.0,70267.0,0.00166998]
[1773272115983,0.07151025,70286.0,70267.0,0.00166998]
[1773272116142,0.07257893,70285.0,70267.0,0.00166998]
[1773272116344,0.071511,70286.0,70267.0,0.00166998]
[1773272116536,0.004793,70285.0,70267.0,0.00166998]
[1773272117184,0.07113994,70284.0,70268.0,0.07115614]
[1773272117341,0.07113994,70284.0,70267.0,0.00144]
[1773272117342,0.004793,70283.0,70267.0,0.00144]
[1773272117755,0.004793,70283.0,70267.0,0.00192861]
[1773272117955,0.004793,70283.0,70268.0,0.00144]
[1773272118457,0.004793,70282.0,70268.0,0.00144]
[1773272118847,0.004793,70282.0,70266.0,0.07115817]
[1773272119045,0.006233,70281.0,70266.0,0.07115817]
[1773272119246,0.07114399,70280.0,70266.0,0.07115817]
[1773272119496,0.00037212,70286.0,70268.0,0.001]
[1773272119672,0.004793,70283.0,70266.0,0.07115817]
[1773272119875,0.00181212,70286.0,70267.0,0.00192861]
[1773272120091,0.07637622,70286.0,70267.0,0.00192861]
[1773272121306,0.09599555,70290.0,70269.0,0.00192861]
[1773272121608,0.00486577,70292.0,70271.0,0.00454756]
[1773272121969,0.00486577,70292.0,70273.0,0.00454756]
[1773272122170,0.00486577,70292.0,70274.0,0.00144]
[1773272122611,0.00486577,70292.0,70275.0,0.00144]
[1773272122801,0.07135108,70293.0,70271.0,0.001]
[1773272122802,0.00486577,70289.0,70271.0,0.001]
[1773272122975,0.00486577,70289.0,70269.0,0.00037212]
[1773272123178,0.00486577,70289.0,70262.0,0.00144]
[1773272123179,0.00486577,70287.0,70262.0,0.00144]
[1773272123490,0.00486577,70287.0,70261.0,0.07136234]
[1773272123491,0.00486577,70285.0,70261.0,0.07136234]
[1773272123679,0.00486577,70285.0,70261.0,0.00164]
[1773272123894,0.00486577,70285.0,70261.0,0.07136288]
[1773272125939,0.07113994,70284.0,70261.0,0.07136288]
[1773272126138,0.00486577,70283.0,70261.0,0.07136288]
[1773272126340,0.00486577,70283.0,70262.0,0.00454756]
[1773272128319,0.21240244,70284.0,70262.0,0.00454756]
[1773272128320,0.1412625,70284.0,70264.0,0.00454756]
[1773272128535,0.07114028,70284.0,70264.0,0.00454756]
[1773272128931,0.07600605,70284.0,70264.0,0.00454756]
[1773272130699,0.07600605,70284.0,70266.0,0.00454756]
[1773272130909,0.07600605,70284.0,70268.0,0.00454756]
[1773272132642,0.07600605,70284.0,70269.0,0.07115513]
[1773272132845,0.00486577,70283.0,70269.0,0.07115513]
[1773272133548,0.00037212,70287.0,70269.0,0.07115513]
[1773272133549,0.00022001,70301.0,70271.0,0.00454756]
[1773272133702,0.00022001,70301.0,70281.0,0.00454756]
[1773272133703,0.00486577,70298.0,70281.0,0.00454756]
[1773272133911,0.00486577,70291.0,70271.0,0.00037212]
[1773272134134,0.00486577,70291.0,70273.0,0.00454756]
[1773272134312,0.00022001,70293.0,70275.0,0.00454756]
[1773272134643,0.00022001,70293.0,70282.0,0.07114197]
[1773272134835,0.00022001,70293.0,70284.0,0.00454756]
[1773272135529,0.07134286,70301.0,70284.0,0.00454756]
[1773272135530,0.00022001,70301.0,70284.0,0.00454756]
[1773272135737,1e-08,70295.0,70284.0,0.00454756]
[1773272136775,1e-08,70295.0,70285.0,0.07113893]
[1773272136979,1e-08,70295.0,70286.0,0.00454756]
[1773272137305,0.00012001,70309.0,70286.0,0.00454756]
[1773272137502,0.00012001,70309.0,70290.0,0.12753854]
[1773272137642,0.00012001,70309.0,70292.0,0.00454756]
[1773272138635,0.00012001,70309.0,70292.0,0.00554756]
[1773272139040,0.00012001,70309.0,70293.0,0.07113083]
[1773272139340,0.00012001,70309.0,70294.0,0.00454756]
[1773272141250,0.00012001,70309.0,70295.0,0.07112881]
[1773272141486,0.00012001,70309.0,70296.0,0.00491926]
[1773272142569,0.00012001,70309.0,70298.0,0.00491926]
[1773272143964,0.00012001,70309.0,70299.0,0.07112476]
[1773272144108,0.00022001,70324.0,70300.0,0.00491926]
[1773272144321,0.00033165,70324.0,70301.0,0.00491926]
[1773272144527,0.00033165,70324.0,70303.0,0.00491926]
[1773272145054,0.00033165,70324.0,70305.0,0.00491926]
[1773272146162,0.00033165,70324.0,70306.0,0.07111768]
[1773272146357,0.00033165,70324.0,70307.0,0.00491926]
[1773272147388,1e-08,70324.0,70310.0,0.12744169]
[1773272147585,1e-08,70324.0,70312.0,0.00491926]
[1773272148759,1e-08,70325.0,70314.0,0.00491926]
[1773272149098,1e-08,70325.0,70314.0,0.0050309]
[1773272149306,1e-08,70325.0,70315.0,0.00144]
[1773272149504,1e-08,70325.0,70314.0,0.00011164]
[1773272149756,0.00492101,70324.0,70314.0,0.00011164]
[1773272149907,0.00514102,70324.0,70315.0,0.00144]
[1773272150112,0.16906283,70371.0,70317.0,0.0074605]
[1773272150334,0.16906283,70371.0,70316.0,0.00144]
[1773272150335,0.098678,70349.0,70330.0,0.12744169]
[1773272150539,0.00012001,70346.0,70331.0,0.0089005]
[1773272150761,0.00012001,70346.0,70333.0,0.0074605]
[1773272151120,0.00022001,70339.0,70333.0,0.0074605]
[1773272151326,1e-08,70339.0,70333.0,0.0074605]
[1773272151534,0.00022001,70354.0,70333.0,0.0074605]
[1773272151749,0.07106663,70357.0,70333.0,0.0074605]
[1773272152787,0.07118513,70357.0,70335.0,0.005]
[1773272154994,0.0001185,70357.0,70337.0,0.005]
[1773272155434,0.0001185,70357.0,70341.0,0.005]
[1773272156399,0.00023014,70357.0,70341.0,0.005]
[1773272156865,0.00023014,70357.0,70340.0,0.12744169]
[1773272156866,0.07105786,70366.0,70340.0,0.12744169]
[1773272156867,1e-08,70380.0,70358.0,0.005]
[1773272157069,0.0004238,70404.0,70370.0,0.38232507]
[1773272157263,0.0004238,70404.0,70360.0,0.32594648]
[1773272157264,0.01124,70415.0,70387.0,0.00499562]
[1773272157396,0.00011159,70404.0,70389.0,0.00499562]
[1773272157597,5.58e-05,70404.0,70389.0,0.00499562]
[1773272157884,1e-08,70415.0,70395.0,0.00499562]
[1773272158083,0.02823879,70437.0,70406.0,0.00499562]
[1773272158241,0.02823879,70437.0,70419.0,0.00499562]
[1773272158442,0.02823879,70437.0,70421.0,0.00499562]
[1773272158646,0.02823879,70437.0,70422.0,0.00144]
[1773272158848,0.00088492,70435.0,70423.0,0.00144]
[1773272159051,0.09922444,70437.0,70423.0,0.00144]
[1773272159267,0.09922446,70437.0,70423.0,0.00144]
[1773272159468,0.02835032,70437.0,70423.0,0.00144]
[1773272159671,0.07098642,70436.0,70423.0,0.00144]
[1773272160046,0.02835032,70437.0,70423.0,0.00144]
[1773272160467,0.09933631,70437.0,70423.0,0.00144]
[1773272160818,0.09933631,70437.0,70412.0,0.07101062]
[1773272160819,0.09933631,70437.0,70421.0,0.00144]
[1773272161565,0.02835032,70437.0,70421.0,0.00144]
[1773272162873,0.02835032,70437.0,70412.0,0.07101062]
[1773272163061,0.02835032,70437.0,70403.0,0.0710197]
[1773272163062,0.00465015,70435.0,70403.0,0.0710197]
[1773272163263,0.00465015,70429.0,70404.0,0.00144]
[1773272164997,0.00465015,70429.0,70402.0,0.07102052]
[1773272165299,0.00465015,70427.0,70402.0,0.07031003]
[1773272165478,0.00465015,70425.0,70402.0,0.07031003]
[1773272166667,0.00565015,70425.0,70401.0,0.0710197]
[1773272167065,0.00565015,70425.0,70390.0,0.12744169]
[1773272167066,0.07100356,70419.0,70391.0,0.00144]
[1773272167287,0.07100356,70419.0,70391.0,0.07247157]
[1773272167487,0.07100356,70419.0,70392.0,0.01027183]
[1773272167666,0.07099751,70425.0,70392.0,0.01027183]
[1773272167866,0.00144,70418.0,70392.0,0.01027183]
[1773272168227,0.07099246,70431.0,70391.0,0.07247157]
[1773272168228,0.09955601,70437.0,70401.0,0.01027183]
[1773272168515,0.09955601,70437.0,70410.0,0.12744169]
[1773272168516,0.07242642,70436.0,70410.0,0.12744169]
[1773272168691,0.07054221,70436.0,70411.0,0.01156151]
[1773272169010,0.00144,70435.0,70411.0,0.01156151]
[1773272169307,0.07098844,70434.0,70413.0,0.01019667]
[1773272169487,0.07098844,70434.0,70413.0,0.01004636]
[1773272169694,0.07098844,70434.0,70413.0,0.01000636]
[1773272170505,0.00144,70433.0,70413.0,0.01000636]
[1773272171168,0.00144,70434.0,70413.0,0.01000636]
[1773272171408,0.00144,70433.0,70415.0,0.01010151]
[1773272172328,0.00144,70432.0,70415.0,0.01010151]
[1773272172549,0.00144,70432.0,70415.0,0.00980088]
[1773272172687,0.00144,70432.0,70415.0,0.00965056]
[1773272173407,0.00144,70432.0,70416.0,0.07100658]
[1773272173733,0.00144,70432.0,70417.0,0.00987604]
[1773272174102,0.07243047,70432.0,70417.0,0.00987604]
[1773272174718,0.02840184,70458.0,70421.0,0.82618704]
[1773272174918,0.02840184,70458.0,70420.0,0.38232507]
[1773272174919,0.02877345,70458.0,70431.0,0.00987604]
[1773272175141,0.02877345,70458.0,70420.0,0.25488338]
[1773272175142,0.00037161,70458.0,70440.0,0.12744169]
[1773272175301,0.00037161,70458.0,70441.0,0.01131604]
[1773272175651,0.07133596,70458.0,70442.0,0.07098038]
[1773272176026,0.07133596,70458.0,70430.0,0.12744169]
[1773272176027,0.07133596,70458.0,70437.0,0.00144]
[1773272176209,0.07133596,70458.0,70434.0,0.00144]
[1773272176396,0.07133596,70458.0,70434.0,0.00113942]
[1773272177025,0.07133596,70458.0,70435.0,0.00987604]
[1773272177930,0.00144,70457.0,70436.0,0.07098642]
[1773272178299,0.07133596,70458.0,70436.0,0.07098642]
[1773272178659,0.00144,70457.0,70437.0,0.00987604]
[1773272178859,0.00144,70457.0,70436.0,0.07098642]
[1773272179030,0.00144,70457.0,70432.0,0.07098945]
[1773272179031,0.00244,70457.0,70432.0,0.07098945]
[1773272179410,0.00144,70457.0,70432.0,0.07098945]
[1773272179756,0.00144,70457.0,70425.0,0.07099711]
[1773272179757,0.00144,70457.0,70427.0,0.07099488]
[1773272180354,0.07096627,70456.0,70427.0,0.07099488]
[1773272180786,0.07096627,70456.0,70428.0,0.00987604]
[1773272180983,0.07096627,70456.0,70427.0,0.07099488]
[1773272181992,0.07196627,70456.0,70427.0,0.07099488]
[1773272182204,0.07196627,70456.0,70396.0,0.34112566]
[1773272182205,0.12744169,70450.0,70410.0,0.00987604]
[1773272182357,0.07097332,70449.0,70412.0,0.00987604]
[1773272182556,0.00144,70448.0,70412.0,0.00987604]
[1773272183843,0.00144,70448.0,70408.0,0.07101409]
[1773272183844,0.12744169,70430.0,70406.0,0.00987604]
[1773272184018,0.00144,70429.0,70406.0,0.00987604]
[1773272184170,0.00144,70428.0,70406.0,0.00987604]
[1773272184367,0.02898262,70439.0,70408.0,0.00987604]
[1773272184368,0.00144,70427.0,70408.0,0.00987604]
[1773272184587,0.00144,70426.0,70408.0,0.00987604]
[1773272184815,0.07098441,70438.0,70408.0,0.00987604]
[1773272184816,0.00144,70425.0,70408.0,0.00987604]
[1773272184997,0.00144,70425.0,70408.0,0.00998757]
[1773272185523,0.07098441,70438.0,70408.0,0.00998757]
[1773272185723,0.00144,70437.0,70408.0,0.00998757]
[1773272186028,0.07098441,70438.0,70408.0,0.00998757]
[1773272186325,0.07098642,70436.0,70409.0,0.07101364]
[1773272186526,0.07098642,70436.0,70410.0,0.00987604]
[1773272186691,0.00144,70435.0,70410.0,0.00987604]
[1773272187988,0.00144,70435.0,70408.0,0.00011153]
[1773272187989,0.12744169,70430.0,70408.0,0.00011153]
[1773272188229,0.12744169,70430.0,70404.0,0.07121858]
[1773272188488,0.07099348,70429.0,70404.0,0.07121858]
[1773272188777,0.07099348,70429.0,70404.0,0.0002]
[1773272188981,0.2120761,70429.0,70404.0,0.0002]
[1773272190195,0.2130761,70429.0,70404.0,0.0002]
[1773272190600,0.2130761,70429.0,70404.0,0.0712178]
[1773272190837,0.00144,70428.0,70405.0,0.00987604]
[1773272191382,0.07199348,70429.0,70405.0,0.00987604]
[1773272192010,0.00144,70428.0,70405.0,0.00987604]
[1773272192211,0.07199348,70429.0,70405.0,0.00987604]
[1773272192212,0.00144,70427.0,70405.0,0.00987604]
[1773272192833,0.0709965,70426.0,70406.0,0.07101667]
[1773272195700,0.0709965,70426.0,70405.0,0.07101768]
[1773272195921,0.0709965,70426.0,70405.0,0.07121768]
[1773272197066,0.12744169,70420.0,70397.0,0.0002]
[1773272197231,0.00144,70419.0,70397.0,0.0002]
[1773272199375,0.07100457,70418.0,70397.0,0.0002]
[1773272200639,0.07200457,70418.0,70397.0,0.0002]
[1773272201089,0.07200457,70418.0,70397.0,0.0712256]
[1773272201266,0.07200457,70418.0,70400.0,0.00987604]
[1773272202154,0.07100457,70418.0,70400.0,0.00987604]
[1773272202358,0.07100374,70422.0,70400.0,0.00987604]
[1773272202359,0.06349784,70436.0,70409.0,0.00987604]
[1773272202557,0.00144,70435.0,70409.0,0.00998746]
[1773272202795,0.06349784,70436.0,70409.0,0.01142746]
[1773272202796,0.00144,70434.0,70409.0,0.01142746]
[1773272203096,0.00144,70433.0,70409.0,0.01142746]
[1773272203515,0.07099045,70432.0,70410.0,0.07101264]
[1773272203693,0.00022001,70429.0,70411.0,0.00987604]
[1773272204647,0.00022001,70429.0,70409.0,0.071125]